bitfinex-derivatives/quotes_ETHF0:USTF0_20240913
["timestamp","ask_amount","ask_price","bid_price","bid_amount"]
[1726198757114,1.9133,2357.8,2357.7,1.53668023]
[1726198757515,1.9133,2357.8,2357.7,3.56543622]
[1726198757819,1.53,2357.8,2357.7,6.77323622]
[1726198758518,2.35168,2357.9,2357.8,0.4241]
[1726198758721,2.35168,2357.9,2357.8,3.00949846]
[1726198759022,1.9276,2357.9,2357.8,1.53665541]
[1726198759213,2.35168,2357.9,2357.8,1.11255541]
[1726198759409,2.35168,2357.9,2357.8,0.4241]
[1726198759823,1.9276,2357.9,2357.8,0.4241]
[1726198760523,1.9276,2357.9,2357.8,1.53665541]
[1726198760718,2.35168,2357.9,2357.8,0.4241]
[1726198761427,1.9276,2357.9,2357.8,0.4241]
[1726198761617,1.9276,2357.9,2357.8,1.53665541]
[1726198761818,1.9276,2357.9,2357.8,0.4241]
[1726198762328,1.9276,2357.9,2357.7,1.53665541]
[1726198762626,0.4241,2357.8,2357.7,1.53667541]
[1726198762810,0.4241,2357.8,2357.7,0.42412]
[1726198763323,0.4241,2357.8,2357.6,1.53667541]
[1726198763620,0.3856,2357.7,2357.6,1.53667541]
[1726198763825,0.3856,2357.7,2357.6,3.00977567]
[1726198766112,0.3856,2357.7,2357.6,3.56604604]
[1726198767224,0.3856,2357.7,2357.6,3.56576444]
[1726198769425,0.3856,2357.7,2357.6,3.00939138]
[1726198770625,0.3856,2357.7,2357.6,3.56576444]
[1726198772318,0.3856,2357.7,2357.6,3.00930472]
[1726198777815,0.3856,2357.7,2357.6,3.56576444]
[1726198778928,1.53,2357.8,2357.7,0.42412]
[1726198779131,3.2078,2358.2,2357.8,0.4241]
[1726198779323,1.53,2357.9,2357.8,1.90607867]
[1726198781132,1.53,2357.9,2357.8,0.794]
[1726198783232,1.9298,2357.9,2357.8,0.794]
[1726198784327,2.19714468,2357.9,2357.8,0.794]
[1726198787333,1.9298,2357.9,2357.8,0.794]
[1726198789233,1.9298,2357.9,2357.8,1.90607867]
[1726198790838,0.4241,2357.8,2357.7,2.05572578]
[1726198791047,0.4241,2357.8,2357.7,2.97042986]
[1726198791048,0.8307,2357.8,2357.7,2.97042986]
[1726198791342,0.8307,2357.8,2357.7,1.49955058]
[1726198792444,0.4066,2357.8,2357.7,1.92367058]
[1726198793645,0.8307,2357.8,2357.7,1.92367058]
[1726198793836,0.8307,2357.8,2357.7,1.49955058]
[1726198796245,0.42412,2357.7,2357.6,1.11265058]
[1726198796546,1.95412,2357.7,2357.6,1.11265058]
[1726198796746,0.42413,2357.6,2357.5,2.05062578]
[1726198796946,1.18333,2357.6,2357.5,2.96572101]
[1726198797246,1.18333,2357.6,2357.5,2.96568858]
[1726198797436,1.18333,2357.6,2357.5,7.15363927]
[1726198797641,1.18333,2357.6,2357.5,6.5976569]
[1726198797837,1.18333,2357.6,2357.5,7.15363927]
[1726198798239,0.7592,2357.6,2357.5,7.15363927]
[1726198798445,1.18333,2357.6,2357.5,7.15363927]
[1726198799349,1.18333,2357.6,2357.5,6.72948927]
[1726198799740,1.18333,2357.6,2357.5,7.15363927]
[1726198800045,1.18333,2357.6,2357.5,6.59759855]
[1726198800243,1.18333,2357.6,2357.5,6.59759591]
[1726198800449,1.18333,2357.6,2357.5,7.15363927]
[1726198800744,1.18333,2357.6,2357.5,6.72948767]
[1726198800946,0.7592,2357.6,2357.5,7.15363767]
[1726198801747,0.7592,2357.6,2357.5,6.72948767]
[1726198801950,5.42493,2357.6,2357.5,1.1128687]
[1726198802256,0.42415,2357.5,2357.4,1.1128687]
[1726198802444,2.33375,2357.5,2357.4,1.1128687]
[1726198802852,1.9096,2357.5,2357.4,1.1128687]
[1726198803069,2.33375,2357.5,2357.4,1.1128687]
[1726198803855,1.9096,2357.5,2357.4,2.58375355]
[1726198804150,1.9096,2357.5,2357.3,2.09300578]
[1726198804151,0.42417,2357.4,2357.3,1.1128687]
[1726198804350,1.9096,2357.5,2357.3,3.56401217]
[1726198804552,0.36487084,2358.0,2357.4,3.35117358]
[1726198804853,0.36487084,2358.0,2357.7,1.5366996]
[1726198804854,1.53,2357.8,2357.7,1.5366996]
[1726198805045,1.53,2357.8,2357.6,4.7444996]
[1726198805243,1.53,2357.8,2357.7,0.79462]
[1726198805441,1.53,2357.8,2357.7,1.16582]
[1726198805753,1.53,2357.8,2357.7,4.67927205]
[1726198806047,1.53,2357.8,2357.7,4.12286227]
[1726198807149,1.53,2357.8,2357.7,2.654436]
[1726198811653,1.9184,2357.8,2357.7,2.654436]
[1726198815862,2.3425,2357.8,2357.7,2.230316]
[1726198816053,2.3425,2357.8,2357.7,1.1179]
[1726198816363,1.9184,2357.8,2357.7,1.1179]
[1726198816659,1.9184,2357.8,2357.7,1.54202]
[1726198816851,1.9184,2357.8,2357.7,1.16582]
[1726198817058,2.3059,2357.8,2357.7,1.482916]
[1726198817252,2.3059,2357.8,2357.7,0.79462]
[1726198817458,2.3059,2357.8,2357.7,2.287536]
[1726198817459,1.53,2357.8,2357.7,2.287536]
[1726198818258,1.43990065,2358.0,2357.7,2.287536]
[1726198818259,0.3872,2358.0,2357.7,1.863416]
[1726198818563,1.53,2357.9,2357.8,1.941806]
[1726198819367,1.53,2357.9,2357.8,2.29782234]
[1726198819663,1.53,2357.9,2357.8,3.41014048]
[1726198819858,1.95408,2357.9,2357.8,2.98605048]
[1726198820053,1.95408,2357.9,2357.8,1.51765305]
[1726198820255,1.53,2357.9,2357.8,1.94175305]
[1726198820859,1.95408,2357.9,2357.8,1.51765305]
[1726198821062,1.95408,2357.9,2357.8,0.4053]
[1726198821258,1.95408,2357.9,2357.7,1.86335305]
[1726198821259,0.4241,2357.8,2357.7,1.86335305]
[1726198821466,0.4241,2357.8,2357.7,3.88825968]
[1726198821654,0.4241,2357.8,2357.7,4.31237968]
[1726198822860,2.33669,2357.9,2357.7,4.31237968]
[1726198823071,1.95409,2357.9,2357.8,1.11234532]
[1726198823366,1.95408,2357.9,2357.8,1.94064532]
[1726198823557,1.95408,2357.9,2357.8,0.8283]
[1726198824164,1.95408,2357.9,2357.8,1.94064532]
[1726198826457,1.95408,2357.9,2357.8,0.8283]
[1726198831268,1.95408,2357.9,2357.8,0.4042]
[1726198831465,1.95408,2357.9,2357.8,0.8283]
[1726198832374,5.7708,2357.9,2357.5,1.11234532]
[1726198832676,0.42419,2357.3,2357.1,8.78044532]
[1726198832972,1.9047,2357.2,2357.1,1.11267044]
[1726198833171,1.9047,2357.2,2357.1,2.58136551]
[1726198833375,1.53,2357.2,2357.1,5.10072696]
[1726198833575,1.53,2357.2,2357.1,5.57120787]
[1726198833779,1.53,2357.2,2357.1,7.32103217]
[1726198833978,1.53,2357.2,2357.1,7.79151311]
[1726198834178,1.53,2357.2,2357.1,5.5712079]
[1726198834386,1.53,2357.2,2357.1,5.10072696]
[1726198834973,1.53,2357.2,2357.1,5.57121354]
[1726198835272,1.9542,2357.3,2357.1,14.5460863]
[1726198835479,1.9542,2357.3,2357.2,3.52440477]
[1726198838169,1.9542,2357.3,2357.2,3.52350196]
[1726198839483,1.9542,2357.3,2357.2,2.96691651]
[1726198839676,1.9542,2357.3,2357.2,3.52350196]
[1726198840474,1.9542,2357.3,2357.2,2.96683135]
[1726198840675,1.9542,2357.3,2357.2,1.4990272]
[1726198842377,1.9542,2357.3,2357.2,1.9232372]
[1726198844281,0.4242,2357.3,2357.2,1.9232372]
[1726198844480,0.4009,2357.4,2357.3,0.42419]
[1726198844678,1.9309,2357.4,2357.3,0.42419]
[1726198845588,2.35507,2357.4,2357.3,0.42419]
[1726198845792,1.9309,2357.4,2357.3,0.42419]
[1726198846085,0.82725,2357.6,2357.3,1.1117272]
[1726198846389,2.35725,2357.6,2357.5,3.2078]
[1726198846580,2.35725,2357.6,2357.4,0.7877]
[1726198846786,2.35725,2357.6,2357.5,0.3821]
[1726198847380,2.35725,2357.6,2357.5,4.01405]
[1726198847578,2.35725,2357.6,2357.5,0.3821]
[1726198848393,2.35725,2357.6,2357.5,0.80625]
[1726198848588,2.35725,2357.6,2357.5,0.3821]
[1726198849388,0.099,2357.9,2357.8,0.4241]
[1726198849694,1.53,2357.9,2357.8,0.4241]
[1726198861397,1.53,2357.9,2357.8,0.7958]
[1726198861901,0.3783,2358.0,2357.9,0.42408]
[1726198862198,1.9083,2358.0,2357.9,0.42408]
[1726198863197,0.3783,2358.0,2357.9,0.42408]
[1726198863702,0.4241,2357.8,2357.6,1.53518652]
[1726198863894,0.4241,2357.8,2357.6,0.42413]
[1726198863895,2.6777,2357.7,2357.6,0.42413]
[1726198864398,3.10182,2357.7,2357.6,0.42413]
[1726198864596,2.6777,2357.7,2357.6,0.42413]
[1726198865501,3.10182,2357.7,2357.6,0.42413]
[1726198865690,2.6777,2357.7,2357.6,0.42413]
[1726198867305,0.099,2358.2,2357.6,2.5772689]
[1726198867501,0.4023,2358.1,2358.0,0.42404]
[1726198868803,1.53,2358.3,2357.9,1.88806652]
[1726198869103,1.53,2358.3,2358.2,0.42403]
[1726198875104,1.53,2358.3,2358.2,4.66483]
[1726198877812,1.53,2358.3,2358.2,0.42403]
[1726198884427,1.53,2358.3,2358.1,0.42404]
[1726198884628,2.69,2358.2,2358.1,0.42404]
[1726198886032,2.69,2358.2,2358.1,3.63184]
[1726198886523,0.3776,2358.2,2358.1,3.63184]
[1726198887439,0.3776,2358.2,2358.1,0.42404]
[1726198898645,1.53,2358.3,2358.2,0.42403]
[1726198901240,1.53,2358.3,2358.0,5.78171652]
[1726198901241,0.82939,2358.4,2358.3,0.42401]
[1726198901443,2.35939,2358.4,2358.3,0.42401]
[1726198905241,1.9354,2358.4,2358.1,3.2078]
[1726198905660,2.3594,2358.4,2358.3,0.42401]
[1726198907754,1.9354,2358.4,2358.3,0.42401]
[1726198908441,0.4054,2358.4,2358.3,0.42401]
[1726198909241,0.4054,2358.4,2358.3,1.59771]
[1726198910747,1.9354,2358.4,2358.3,1.59771]
[1726198912849,2.35939,2358.4,2358.3,1.59771]
[1726198916841,1.9354,2358.4,2358.3,1.59771]
[1726198917348,2.35939,2358.4,2358.3,1.59771]
[1726198918554,1.9354,2358.4,2358.3,1.59771]
[1726198920650,2.35939,2358.4,2358.3,1.59771]
[1726198922757,1.9354,2358.4,2358.3,1.59771]
[1726198923152,2.35939,2358.4,2358.3,1.59771]
[1726198924151,0.42401,2358.3,2358.2,4.32030834]
[1726198924352,2.3594,2358.4,2358.2,6.76663072]
[1726198924556,2.3594,2358.4,2358.2,4.74447909]
[1726198925558,2.3594,2358.4,2358.3,1.11266909]
[1726198925964,2.3594,2358.4,2358.2,4.74447909]
[1726198926562,2.3594,2358.4,2358.2,1.53667909]
[1726198926873,2.3594,2358.4,2358.3,1.11266909]
[1726198928665,2.3594,2358.4,2358.3,1.53667909]
[1726198929864,1.9354,2358.4,2358.3,1.53667909]
[1726198930062,1.9354,2358.4,2358.3,3.00251517]
[1726198930269,1.9354,2358.4,2358.3,6.76640859]
[1726198930472,1.9335,2358.6,2358.4,0.42398]
[1726198930660,2.35747,2358.6,2358.4,1.92134553]
[1726198930970,1.9335,2358.6,2358.5,0.42397]
[1726198931170,0.4035,2358.6,2358.5,3.00160794]
[1726198931365,1.53,2358.7,2358.6,0.42395]
[1726198931566,2.3129,2358.8,2358.7,0.42394]
[1726198931870,1.9335,2358.8,2358.7,0.42394]
[1726198932060,1.53,2358.8,2358.7,1.92128129]
[1726198932566,1.53,2358.8,2358.7,0.80904]
[1726198940576,1.09476735,2359.0,2358.8,0.4239]
[1726198940882,1.53,2358.9,2358.8,0.4239]
[1726198941584,0.4035,2359.0,2358.9,0.4239]
[1726198941886,2.35739,2359.0,2358.8,0.42391]
[1726198945188,1.9335,2359.0,2358.9,0.4239]
[1726198945380,2.35738,2359.0,2358.8,0.4239]
[1726198945679,0.4035,2359.0,2358.9,0.4239]
[1726198947787,0.7559,2359.1,2359.0,0.42388]
[1726198947990,2.2859,2359.1,2359.0,0.42388]
[1726198949989,2.2859,2359.1,2359.0,0.81168]
[1726198950780,2.2859,2359.1,2359.0,1.20828]
[1726198950984,0.3727,2359.2,2359.1,0.42386]
[1726198951596,2.74272,2359.4,2359.3,0.42383]
[1726198951597,0.7889,2359.4,2359.3,0.42383]
[1726198951890,0.3953,2359.5,2359.4,0.4238]
[1726198952080,0.3953,2359.5,2359.4,0.8128]
[1726198953591,0.3953,2359.5,2359.4,0.389]
[1726198953592,0.81909,2359.5,2359.4,0.389]
[1726198953887,0.3953,2359.5,2359.4,0.389]
[1726198954192,0.3953,2359.5,2359.4,0.81281]
[1726198954389,0.3953,2359.5,2359.4,0.389]
[1726198954693,0.81909,2359.5,2359.4,0.389]
[1726198959390,2.34909,2359.5,2359.4,0.389]
[1726198959592,2.34909,2359.5,2359.4,0.81281]
[1726198961287,0.42381,2359.4,2359.3,3.63162]
[1726198961489,1.95381,2359.4,2359.3,3.2078]
[1726198962388,1.95381,2359.4,2359.3,3.63163]
[1726198963598,1.95381,2359.4,2359.3,0.42383]
[1726198965692,1.53,2359.4,2359.3,0.42383]
[1726198967396,1.95381,2359.4,2359.3,0.42383]
[1726198967596,0.42381,2359.4,2359.3,0.42383]
[1726198970304,1.95382,2359.4,2359.3,0.42383]
[1726198973405,0.42381,2359.4,2359.3,0.42383]
[1726198974506,0.81911,2359.5,2359.3,0.42383]
[1726198974705,0.81911,2359.5,2359.4,0.42381]
[1726198975208,0.81911,2359.5,2359.3,1.17272]
[1726198975409,0.81911,2359.5,2359.4,0.3751]
[1726198976701,0.81911,2359.5,2359.4,0.79891]
[1726198976702,0.3953,2359.5,2359.4,0.79891]
[1726198981106,0.81909,2359.5,2359.4,0.3751]
[1726198981308,0.81909,2359.5,2359.4,0.79891]
[1726198981516,0.42381,2359.4,2359.3,0.42382]
[1726198981711,0.42381,2359.4,2359.2,0.42383]
[1726198981712,0.82641,2359.4,2359.2,0.42383]
[1726198982018,0.82641,2359.4,2359.3,0.42383]
[1726198982308,0.42385,2359.2,2359.1,1.18226]
[1726198982513,0.81674,2359.3,2359.2,0.42385]
[1726198984816,0.42385,2359.2,2359.1,1.18225]
[1726198985015,0.3802,2359.2,2359.1,1.18225]
[1726198986214,0.80405,2359.2,2359.1,0.79445]
[1726198986718,0.3802,2359.2,2359.1,0.79445]
[1726198996916,0.42386,2359.1,2359.0,3.2078]
[1726198997115,0.42389,2359.0,2358.7,4.72684129]
[1726198997425,0.7939,2358.9,2358.8,0.42391]
[1726198999718,0.7939,2358.9,2358.8,1.53615129]
[1726199000227,0.37,2358.9,2358.8,1.53615129]
[1726199000524,0.37,2358.9,2358.8,2.99608357]
[1726199000731,0.37,2358.9,2358.8,3.76518357]
[1726199001129,0.37,2358.9,2358.8,2.30525129]
[1726199001330,0.37,2358.9,2358.8,3.76500068]
[1726199001520,0.37,2358.9,2358.8,4.3215219]
[1726199001721,0.81519,2359.0,2358.8,4.3215219]
[1726199001946,0.7732,2359.1,2359.0,0.42388]
[1726199002123,0.4018,2359.1,2359.0,0.42388]
[1726199002323,0.4018,2359.1,2359.0,0.82378]
[1726199002723,0.4018,2359.1,2359.0,1.93455562]
[1726199003823,0.4018,2359.1,2359.0,0.82378]
[1726199004029,0.4018,2359.1,2358.9,1.53466562]
[1726199004030,5.06486,2359.1,2358.9,1.53466562]
[1726199004229,0.83078,2359.0,2358.8,1.53468562]
[1726199004428,0.83078,2359.0,2358.8,1.53467562]
[1726199005033,0.83078,2359.0,2358.9,0.4239]
[1726199005725,0.4069,2359.0,2358.9,0.4239]
[1726199007324,4.5955475,2359.4,2359.2,0.42385]
[1726199007325,0.3758,2359.3,2359.2,0.42385]
[1726199007730,0.3868,2359.4,2359.3,0.42383]
[1726199008025,0.37,2359.5,2359.2,0.8003]
[1726199008226,0.37,2359.5,2359.4,0.42381]
[1726199008426,1.18638,2359.6,2359.4,0.42381]
[1726199009928,2.71638,2359.6,2359.4,0.42381]
[1726199013130,2.71638,2359.6,2359.3,0.42383]
[1726199013131,2.2926,2359.6,2359.3,0.42383]
[1726199013441,2.2926,2359.6,2359.5,0.42379]
[1726199013829,2.71637,2359.6,2359.4,0.4238]
[1726199014749,2.2926,2359.6,2359.5,0.42379]
[1726199017336,0.3868,2359.6,2359.5,0.42379]
[1726199019035,5.53305,2359.8,2359.5,0.42379]
[1726199019336,1.05928,2360.0,2359.8,0.42374]
[1726199019337,0.3779,2359.9,2359.8,0.42374]
[1726199020240,5.1084,2360.1,2359.9,0.42372]
[1726199020433,5.91,2360.1,2359.9,0.42372]
[1726199020637,5.4863,2360.1,2359.9,0.42372]
[1726199020937,5.4863,2360.1,2359.8,0.42373]
[1726199020938,1.95371,2360.0,2359.8,0.42373]
[1726199021442,1.95371,2360.0,2359.9,0.42372]
[1726199021830,1.95371,2360.0,2359.8,0.42373]
[1726199022233,1.95371,2360.0,2359.8,0.79623]
[1726199022747,1.95371,2360.0,2359.9,0.42372]
[1726199023143,1.95371,2360.0,2359.8,0.79622]
[1726199027043,0.42372,2359.9,2359.8,0.79622]
[1726199027440,0.42372,2359.9,2359.8,0.79624]
[1726199028247,0.42372,2359.9,2359.8,0.3725]
[1726199028744,0.42372,2359.9,2359.8,0.79624]
[1726199029747,0.42375,2359.8,2359.6,3.63156]
[1726199030045,0.80335,2359.8,2359.6,4.03166]
[1726199031335,0.3796,2359.8,2359.7,0.42376]
[1726199031947,0.80334,2359.8,2359.7,0.42376]
[1726199035241,0.3796,2359.8,2359.7,0.42376]
[1726199039460,0.3774,2359.9,2359.8,0.42374]
[1726199039749,0.80112,2359.9,2359.8,0.42374]
[1726199040853,0.3774,2359.9,2359.8,0.42374]
[1726199042546,0.80113,2359.9,2359.6,0.4001]
[1726199042753,0.80113,2359.9,2359.8,0.42374]
[1726199042946,0.80113,2359.9,2359.7,0.42374]
[1726199043143,0.3857,2359.8,2359.7,0.42374]
[1726199051161,0.80944,2359.8,2359.7,0.42374]
[1726199053048,0.3857,2359.8,2359.7,0.42374]
[1726199054460,0.80944,2359.8,2359.7,0.42374]
[1726199057057,0.3857,2359.8,2359.7,0.42374]
[1726199057255,0.80944,2359.8,2359.7,0.42374]
[1726199057458,0.42376,2359.7,2359.6,1.11077562]
[1726199057666,0.42377,2359.6,2359.5,1.11077562]
[1726199057966,0.42379,2359.5,2359.4,1.11077562]
[1726199058865,1.48328,2359.5,2359.4,1.11077562]
[1726199059166,0.42379,2359.5,2359.4,1.11077562]
[1726199060061,0.42381,2359.4,2359.2,1.53461562]
[1726199060254,0.42385,2359.2,2359.1,1.11077562]
[1726199060461,0.42386,2359.1,2359.0,4.31857562]
[1726199060660,0.7493,2359.1,2359.0,4.74245562]
[1726199060965,0.373,2359.1,2359.0,4.74245562]
[1726199062661,0.79686,2359.1,2359.0,4.31857562]
[1726199062862,0.373,2359.1,2359.0,4.31857562]
[1726199064256,0.373,2359.1,2359.0,3.2078]
[1726199067058,0.373,2359.1,2359.0,4.66547717]
[1726199068254,0.373,2359.1,2359.0,6.7529041]
[1726199068658,0.373,2359.1,2359.0,6.3290241]
[1726199069666,0.373,2359.1,2359.0,6.32859918]
[1726199069966,0.373,2359.1,2359.0,6.75247918]
[1726199070274,0.373,2359.1,2359.0,3.54467918]
[1726199072573,1.19964,2359.3,2359.1,0.42386]
[1726199072774,1.19964,2359.3,2359.2,1.50640711]
[1726199074070,1.19964,2359.3,2359.2,1.10860711]
[1726199077272,0.42385,2359.2,2359.1,1.10860711]
[1726199077475,0.42385,2359.2,2359.1,2.56531685]
[1726199078175,0.7758,2359.3,2359.1,2.56531685]
[1726199078176,1.19964,2359.3,2359.1,2.56531685]
[1726199078369,1.19964,2359.3,2359.1,1.10860711]
[1726199081372,0.42385,2359.2,2359.1,1.10860711]
[1726199081581,6.19225,2359.2,2359.1,2.56523757]
[1726199082281,6.19225,2359.2,2359.0,0.80487]
[1726199082577,5.7684,2359.2,2359.0,0.80487]
[1726199082778,5.7692,2359.2,2359.0,0.80487]
[1726199082975,6.19305,2359.2,2359.0,0.80487]
[1726199083174,0.3824,2359.1,2359.0,0.80487]
[1726199083575,4.6216,2359.1,2359.0,0.80487]
[1726199084983,0.3824,2359.1,2359.0,0.80487]
[1726199086386,1.53,2359.2,2359.0,0.80487]
[1726199086586,1.53,2359.2,2359.1,0.3818]
[1726199086986,5.7692,2359.2,2359.1,0.3818]
[1726199088889,1.53,2359.2,2359.1,0.3818]
[1726199089088,1.53,2359.2,2359.1,3.50213564]
[1726199089292,1.1575,2359.3,2359.1,3.92599564]
[1726199089492,0.68458799,2359.4,2359.2,1.10861371]
[1726199089893,0.68458799,2359.4,2359.3,0.3935]
[1726199095903,0.26076799,2359.4,2359.3,0.81733]
[1726199096203,1.9538,2359.5,2359.3,1.92594371]
[1726199097208,1.9538,2359.5,2359.3,0.81733]
[1726199100303,5.2917775,2359.5,2359.3,0.81733]
[1726199100509,5.56044165,2359.5,2359.3,0.81733]
[1726199100705,5.56044165,2359.5,2359.3,0.3935]
[1726199101115,5.56044165,2359.5,2359.3,0.81733]
[1726199101808,4.8679775,2359.5,2359.3,0.81733]
[1726199102014,5.2917675,2359.5,2359.3,0.81733]
[1726199102711,4.8679775,2359.5,2359.3,0.81733]
[1726199102910,4.8679775,2359.5,2359.4,0.384]
[1726199103613,5.2917675,2359.5,2359.4,0.384]
[1726199104311,1.53,2359.5,2359.4,0.384]
[1726199104520,1.95379,2359.5,2359.4,0.384]
[1726199105410,1.53,2359.5,2359.4,0.384]
[1726199105606,1.53,2359.5,2359.4,0.80781]
[1726199105807,1.86232362,2359.6,2359.4,1.21211]
[1726199106010,1.60268,2359.6,2359.4,1.21211]
[1726199106213,1.1789,2359.6,2359.4,2.32072371]
[1726199106409,1.1789,2359.6,2359.4,1.21211]
[1726199106716,1.60269,2359.6,2359.4,0.7883]
[1726199106917,1.60269,2359.6,2359.4,1.21211]
[1726199107217,0.7782,2359.6,2359.5,0.42379]
[1726199107417,0.377,2359.6,2359.5,0.42379]
[1726199119322,3.7149775,2359.6,2359.5,0.42379]
[1726199121127,3.7149775,2359.6,2359.4,1.2121]
[1726199121323,1.95381,2359.5,2359.3,3.2078]
[1726199121526,0.3722,2359.4,2359.3,3.63163]
[1726199121727,0.3722,2359.4,2359.3,3.2078]
[1726199127120,0.3722,2359.4,2359.3,3.63163]
[1726199127121,0.63151501,2359.4,2359.3,3.63163]
[1726199127324,0.63151501,2359.4,2359.3,4.31641371]
[1726199128829,0.3722,2359.4,2359.3,4.31641371]
[1726199129133,0.3722,2359.4,2359.3,6.19760226]
[1726199129430,0.3722,2359.4,2359.3,7.13243548]
[1726199129830,0.3722,2359.4,2359.3,6.57881601]
[1726199130030,0.3722,2359.4,2359.3,6.15498601]
[1726199130930,0.3722,2359.4,2359.3,6.57881601]
[1726199131231,0.3722,2359.4,2359.3,7.13243548]
[1726199131431,0.3995,2359.5,2359.3,7.13243548]
[1726199131730,0.3995,2359.5,2359.4,1.53371383]
[1726199131935,0.3995,2359.5,2359.4,1.93591383]
[1726199132235,0.82329,2359.5,2359.4,1.51210383]
[1726199132436,0.3995,2359.5,2359.4,2.30581383]
[1726199132639,0.377,2359.6,2359.5,0.42379]
[1726199133333,0.198,2359.9,2359.7,0.42376]
[1726199133531,0.79852,2359.9,2359.7,0.42376]
[1726199133735,0.79852,2359.9,2359.6,5.13415463]
[1726199133931,0.79852,2359.9,2359.7,0.42375]
[1726199134435,3.3379775,2359.8,2359.7,0.42375]
[1726199134746,4.1364975,2359.9,2359.7,0.42375]
[1726199134930,3.3379775,2359.8,2359.7,0.42375]
[1726199135330,3.3379775,2359.8,2359.7,0.81855]
[1726199135934,3.7127775,2359.9,2359.7,0.81855]
[1726199136134,3.3379775,2359.8,2359.7,0.81855]
[1726199136338,3.7127775,2359.9,2359.7,0.81855]
[1726199136929,3.7127775,2359.9,2359.7,1.21515]
[1726199137435,4.1364975,2359.9,2359.7,1.21515]
[1726199138031,3.7127775,2359.9,2359.7,1.21515]
[1726199138233,3.7127775,2359.9,2359.8,0.42374]
[1726199138434,0.3748,2359.9,2359.8,0.42374]
[1726199140545,0.3748,2359.9,2359.7,1.21515]
[1726199140845,0.79852,2359.9,2359.7,1.21515]
[1726199141045,0.3748,2359.9,2359.7,1.21515]
[1726199141838,1.9048,2359.9,2359.6,3.2078]
[1726199142041,1.95376,2359.7,2359.6,3.2078]
[1726199144452,1.95376,2359.7,2359.5,0.42379]
[1726199144745,0.3902,2359.6,2359.5,0.42379]
[1726199151153,0.69187663,2359.8,2359.6,0.42377]
[1726199151357,1.08097663,2359.8,2359.7,0.3834]
[1726199154643,4.41895413,2359.8,2359.7,0.3834]
[1726199156159,4.41895413,2359.8,2359.6,0.42377]
[1726199157251,3.99520413,2359.8,2359.6,0.42377]
[1726199157556,1.08096663,2359.8,2359.6,0.42377]
[1726199158658,0.65722663,2359.8,2359.7,0.42376]
[1726199160367,1.08096663,2359.8,2359.6,0.3766]
[1726199160670,0.394,2359.7,2359.5,0.4039]
[1726199160958,0.394,2359.7,2359.6,0.42377]
[1726199165564,0.394,2359.7,2359.5,0.4039]
[1726199165862,0.81776,2359.7,2359.5,0.82769]
[1726199166766,0.81776,2359.7,2359.5,0.4039]
[1726199167068,0.81776,2359.7,2359.5,0.82769]
[1726199167465,0.81776,2359.7,2359.5,0.4039]
[1726199167968,0.394,2359.7,2359.5,0.82769]
[1726199168872,0.81776,2359.7,2359.5,0.82769]
[1726199170066,0.394,2359.7,2359.5,0.82769]
[1726199170965,0.81776,2359.7,2359.5,0.82769]
[1726199173873,0.81776,2359.7,2359.1,4.31738463]
[1726199173874,0.4238,2359.5,2359.1,4.31738463]
[1726199174068,0.3902,2359.4,2359.1,3.9822]
[1726199174264,0.7638,2359.4,2359.1,3.9822]
[1726199174673,0.7638,2359.4,2359.2,0.42383]
[1726199175576,0.7638,2359.4,2359.3,0.42383]
[1726199176364,0.7638,2359.4,2359.1,3.9822]
[1726199176566,1.53,2359.2,2359.1,3.9822]
[1726199176765,1.53,2359.2,2359.1,4.40606]
[1726199177371,1.53,2359.2,2359.1,3.9822]
[1726199178171,1.53,2359.2,2359.1,3.5998]
[1726199178393,0.42388,2359.1,2358.7,4.51592]
[1726199178598,0.3844,2359.0,2358.7,4.4985]
[1726199178799,0.3844,2359.0,2358.7,0.83042]
[1726199178999,0.3844,2359.0,2358.7,0.4065]
[1726199179203,1.9144,2359.0,2358.8,0.42392]
[1726199179601,1.9144,2359.0,2358.8,1.53350463]
[1726199180104,1.9144,2359.0,2358.7,2.07004693]
[1726199180105,1.9144,2359.0,2358.7,1.51608463]
[1726199180296,1.9144,2359.0,2358.8,0.42391]
[1726199180804,2.3383,2359.0,2358.7,1.94001463]
[1726199181007,2.3383,2359.0,2358.7,1.94002463]
[1726199181307,2.3383,2359.0,2358.7,0.83044]
[1726199181899,1.9144,2359.0,2358.8,0.42392]
[1726199182104,2.33829,2359.0,2358.7,0.83043]
[1726199183503,0.3844,2359.0,2358.7,0.4065]
[1726199183700,0.80829,2359.0,2358.7,0.4065]
[1726199183901,0.80829,2359.0,2358.7,0.83043]
[1726199184103,0.4239,2358.9,2358.7,0.83043]
[1726199184307,0.4239,2358.9,2358.7,0.4065]
[1726199184506,0.3931,2358.8,2358.7,0.4065]
[1726199184708,0.81702,2358.8,2358.7,0.4065]
[1726199185112,2.34702,2358.8,2358.7,0.4065]
[1726199185614,1.9231,2358.8,2358.7,0.4065]
[1726199186406,0.81702,2358.8,2358.7,0.4065]
[1726199186609,1.95388,2359.1,2358.8,0.42391]
[1726199186800,1.53,2359.1,2358.9,3.2078]
[1726199187007,0.42388,2359.1,2359.0,0.7655]
[1726199187201,0.42388,2359.1,2359.0,1.1485]
[1726199187904,0.42383,2359.3,2359.0,2.6785]
[1726199188106,0.42381,2359.4,2359.0,2.6785]
[1726199188311,0.42382,2359.4,2359.1,0.42386]
[1726199189313,0.42382,2359.4,2359.0,2.6785]
[1726199189507,1.95382,2359.4,2359.1,0.42386]
[1726199191315,1.95382,2359.4,2359.0,1.1485]
[1726199192316,1.95382,2359.4,2359.1,0.42386]
[1726199192517,0.42384,2359.3,2359.0,1.57237]